bitfinex/quotes_ETHUSD_20250213
["timestamp","ask_amount","ask_price","bid_price","bid_amount"]
[1739427991793,0.565,2714.4,2713.9,4.48868]
[1739427991993,0.565,2714.4,2713.9,4.48864]
[1739427992160,0.565,2714.4,2713.9,8.17328]
[1739427992502,0.565,2714.4,2713.9,4.48872]
[1739427993882,4.24906,2714.4,2713.7,4.45459]
[1739427994091,0.8068,2714.0,2713.5,3.68519]
[1739427994750,0.5575,2713.9,2713.3,2.0]
[1739427994949,0.5575,2713.7,2713.2,3.68567]
[1739427995392,0.5575,2713.7,2713.2,7.37127]
[1739427995699,0.5575,2713.7,2713.2,3.6856]
[1739427997078,0.5575,2713.7,2713.2,7.37121]
[1739427997419,0.0075,2713.7,2713.3,3.68542]
[1739427997546,1.3365,2713.6,2713.0,8.1823]
[1739427997745,5.02166,2713.6,2713.0,8.18225]
[1739427998154,5.02166,2713.6,2713.0,7.37175]
[1739427998390,5.02166,2713.6,2713.0,3.68587]
[1739427998821,1.3365,2713.6,2713.1,3.68574]
[1739427999308,1.3365,2713.6,2713.2,3.68565]
[1739427999519,1.3365,2713.6,2713.4,3.6854]
[1739427999930,0.5575,2713.7,2713.4,3.6854]
[1739428000298,0.5575,2713.7,2713.4,3.68533]
[1739428000497,0.5575,2713.7,2713.6,3.68514]
[1739428000693,0.8169,2714.2,2713.7,3.68493]
[1739428000946,1.5033595,2714.2,2713.7,3.68493]
[1739428001121,0.5575,2714.1,2713.3,2.7662]
[1739428001326,0.5575,2714.1,2713.7,3.68492]
[1739428001530,4.24198,2714.1,2713.6,3.68512]
[1739428001841,5.116293,2714.1,2713.6,3.68512]
[1739428001987,1.431813,2714.1,2713.7,3.68492]
[1739428002672,1.431813,2714.1,2713.8,3.68475]
[1739428002874,0.5575,2714.1,2713.7,3.68492]
[1739428003028,0.5575,2714.1,2713.9,3.68466]
[1739428003229,0.7767,2714.4,2714.0,3.68452]
[1739428003457,0.565,2714.3,2713.9,3.68463]
[1739428003724,0.565,2714.3,2714.0,3.68449]
[1739428004076,4.50733,2714.7,2714.2,3.68423]
[1739428004294,0.8236,2714.7,2714.3,3.68416]
[1739428004500,4.50725,2714.7,2714.2,3.68423]
[1739428004776,0.8236,2714.7,2714.2,3.68423]
[1739428005478,0.8236,2714.7,2714.3,5.68411]
[1739428005684,4.50725,2714.7,2714.3,2.0]
[1739428006479,0.8236,2714.7,2714.3,2.0]
[1739428006682,4.24846,2714.9,2714.3,5.68418]
[1739428006850,5.22242479,2714.9,2714.3,5.68418]
[1739428007675,5.22242479,2714.9,2714.4,3.68403]
[1739428007971,1.53896479,2714.9,2714.4,3.68405]
[1739428008408,1.53896479,2714.9,2714.3,2.0]
[1739428008588,3.68361,2714.8,2714.3,2.0]
[1739428009430,3.68365,2714.7,2714.3,2.0]
[1739428009671,3.68361,2714.8,2714.3,2.0]
[1739428010433,7.36721,2714.8,2714.3,2.0]
[1739428010631,3.68374,2714.7,2714.3,2.0]
[1739428011140,4.24848,2714.9,2714.3,2.0]
[1739428011338,1.437001,2714.9,2714.3,5.68417]
[1739428011678,3.68354,2714.8,2714.3,2.0]
[1739428012549,7.36713,2714.8,2714.3,2.0]
[1739428012746,3.68354,2714.8,2714.3,2.0]
[1739428012929,3.68354,2714.8,2714.3,5.68415]
[1739428013132,3.68354,2714.8,2714.3,2.0]
[1739428013331,0.7882,2715.0,2714.6,5.68371]
[1739428013579,0.7882,2715.0,2714.6,2.0]
[1739428013781,0.84178019,2715.0,2714.6,5.68369]
[1739428014030,0.7882,2715.0,2714.6,5.68369]
[1739428014212,0.05356331,2714.9,2714.6,5.68369]
[1739428014379,0.05356331,2714.9,2714.6,2.0]
[1739428017345,0.05356331,2714.9,2714.6,5.68378]
[1739428018328,0.05356331,2714.9,2714.6,2.0]
[1739428019189,3.73705331,2714.9,2714.6,2.0]
[1739428019388,3.68351,2714.8,2714.6,2.0]
[1739428019725,0.87441764,2714.9,2714.6,2.0]
[1739428019928,0.82085433,2714.9,2714.6,2.0]
[1739428020128,4.47153,2715.0,2714.6,2.0]
[1739428020284,0.05378965,2714.8,2714.6,2.0]
[1739428020480,4.24149,2714.5,2714.0,2.0]
[1739428020711,0.500149,2714.4,2714.0,2.0]
[1739428020917,4.29510125,2714.5,2714.0,8.68451]
[1739428021162,4.24149,2714.5,2714.0,8.68451]
[1739428021331,4.29510125,2714.5,2714.0,8.68451]
[1739428021486,0.61111125,2714.5,2714.1,3.68438]
[1739428021934,0.61111125,2714.5,2714.2,3.68427]
[1739428022120,0.61111125,2714.5,2714.1,3.68438]
[1739428022833,0.05361125,2714.5,2714.2,3.68424]
[1739428023207,0.76,2714.6,2714.3,3.68417]
[1739428024509,0.5575,2714.7,2714.3,3.68417]
[1739428024738,0.5575,2714.7,2714.2,3.68425]
[1739428025938,0.5575,2714.7,2714.3,7.36821]
[1739428026141,0.5575,2714.7,2714.3,3.6841]
[1739428026346,0.7728,2715.0,2714.5,3.68385]
[1739428026508,0.76197566,2715.2,2714.7,3.68363]
[1739428026708,3.68312,2715.1,2714.6,3.68376]
[1739428026914,3.74343725,2715.1,2714.6,3.68376]
[1739428027346,0.06031725,2715.1,2714.5,3.68385]
[1739428027840,3.68325,2715.0,2714.5,3.68385]
[1739428027992,3.68337,2714.9,2714.4,2.7632]
[1739428028195,3.68366,2714.7,2714.2,0.7733]
[1739428028395,3.6838,2714.6,2714.1,3.68437]
[1739428028692,0.0075,2714.7,2714.0,2.0]
[1739428028857,3.6844,2714.2,2713.7,5.6849]
[1739428029158,0.5575,2714.0,2713.4,2.0]
[1739428029300,4.46714,2713.9,2713.4,2.0]
[1739428029502,4.46713,2713.9,2713.4,2.0]
[1739428029748,4.46713,2713.9,2713.0,7.1766498]
[1739428029749,3.68511,2713.7,2713.1,2.0]
[1739428029946,3.68514,2713.6,2713.1,2.0]
[1739428030372,3.68528,2713.5,2713.1,2.0]
[1739428030519,3.68511,2713.7,2712.8,2.0]
[1739428030520,3.68554,2713.3,2712.8,2.0]
[1739428030734,0.5575,2713.2,2712.7,3.0]
[1739428030963,4.2432,2713.2,2712.6,3.6864]
[1739428031114,0.5575,2713.2,2712.6,3.6864]
[1739428031305,0.5575,2713.2,2712.8,3.68621]
[1739428031306,0.0075,2713.2,2712.8,3.68621]
[1739428031506,0.0075,2713.2,2712.9,3.68608]
[1739428031940,0.0075,2713.2,2712.7,3.68633]
[1739428032121,0.0075,2713.2,2712.7,0.944933]
[1739428032461,0.0075,2713.2,2712.6,3.0]
[1739428032673,0.0075,2713.2,2712.8,3.68621]
[1739428034227,0.0075,2713.2,2712.9,3.686]
[1739428034427,0.55,2713.3,2713.0,3.68583]
[1739428034827,0.55,2713.3,2712.8,5.68614]
[1739428035181,0.0075,2713.2,2712.8,5.68614]
[1739428035771,0.0075,2713.2,2712.8,5.68612]
[1739428035988,0.55,2713.3,2712.8,2.0]
[1739428036340,0.55,2713.3,2712.9,3.686]
[1739428036491,0.55,2713.3,2713.0,3.68593]
[1739428036696,0.55,2713.3,2712.9,3.686]
[1739428036907,0.55,2713.3,2712.9,3.68599]
[1739428037056,0.55,2713.3,2712.9,7.37198]
[1739428037256,0.55,2713.3,2712.9,3.68599]
[1739428037851,0.55,2713.3,2713.0,3.68593]
[1739428038056,0.7501,2713.7,2713.1,2.0]
[1739428038389,0.55,2713.6,2713.4,3.68533]
[1739428038586,0.55,2713.6,2713.2,3.68563]
[1739428039159,0.55,2713.6,2713.3,3.68554]
[1739428040004,0.55,2713.6,2713.1,5.68573]
[1739428040225,0.55,2713.6,2713.1,2.0]
[1739428040427,0.55,2713.6,2713.3,3.68545]
[1739428040782,0.55,2713.6,2713.2,3.68559]
[1739428040982,0.55,2713.4,2712.9,3.0]
[1739428041184,0.7517,2713.3,2712.7,3.68636]
[1739428041422,4.23574,2713.2,2712.6,3.68641]
[1739428041782,4.23574,2713.2,2712.6,7.37282]
[1739428041982,0.0075,2713.1,2712.6,3.68641]
[1739428042179,4.561449,2713.1,2712.5,3.68662]
[1739428042384,4.50908,2713.0,2712.5,3.68662]
[1739428042732,0.5575,2712.8,2712.1,0.8021]
[1739428042931,4.23668,2712.5,2712.0,2.0]
[1739428043234,0.55,2712.1,2711.7,2.0]
[1739428043430,4.23726,2712.1,2711.5,3.68793]
[1739428043586,4.23726,2712.1,2711.6,3.68781]
[1739428043933,0.55,2712.1,2711.6,3.68781]
[1739428045031,0.55,2712.1,2711.7,3.68768]
[1739428045233,1.051076,2712.1,2711.7,3.68768]
[1739428045532,0.7738,2712.2,2711.7,2.0]
[1739428045691,0.7738,2712.2,2711.9,3.68736]
[1739428045886,0.7738,2712.2,2712.0,3.68722]
[1739428046115,0.7738,2712.2,2711.9,3.68736]
[1739428046352,1.3313,2712.2,2712.1,3.68717]
[1739428046485,0.5575,2712.2,2711.9,3.68736]
[1739428046928,0.0075,2712.4,2711.9,3.68736]
[1739428047136,0.7891,2712.5,2712.1,3.68707]
[1739428047334,0.7891,2712.5,2712.3,7.37369]
[1739428047546,0.7891,2712.5,2712.3,3.6868]
[1739428047690,0.0075,2712.8,2712.3,3.6868]
[1739428047893,0.7711,2712.7,2712.3,3.6868]
[1739428048399,0.55,2712.6,2712.3,3.6868]
[1739428048613,0.55,2712.6,2712.1,3.68711]
[1739428049332,0.55,2712.6,2712.1,3.68708]
[1739428049629,0.55,2712.6,2712.3,3.68681]
[1739428050039,0.55,2712.6,2712.0,2.0]
[1739428050191,0.55,2712.6,2712.2,3.68702]
[1739428050629,1.00704727,2712.6,2712.2,3.68702]
[1739428051152,1.00704727,2712.6,2712.2,3.68693]
[1739428051492,1.00704727,2712.6,2712.3,3.6868]
[1739428051693,0.55,2712.6,2712.3,3.6868]
[1739428053615,0.015,2712.5,2712.2,3.68693]
[1739428054818,0.015,2712.5,2712.3,3.68687]
[1739428055002,0.015,2712.5,2712.2,3.68693]
[1739428055836,0.015,2712.5,2712.1,3.68714]
[1739428056038,0.015,2712.5,2712.2,3.68702]
[1739428056601,0.015,2712.5,2712.3,3.68687]
[1739428056907,0.015,2712.5,2712.2,3.68702]
[1739428058051,0.015,2712.5,2712.3,3.68682]
[1739428058260,0.015,2712.5,2712.1,3.68711]
[1739428058571,0.55,2712.6,2712.4,3.68677]
[1739428058852,0.55,2712.6,2712.4,3.68668]
[1739428059362,0.55,2712.6,2712.4,7.37335]
[1739428059558,0.55,2712.6,2712.4,3.68667]
[1739428060222,0.55,2712.6,2712.2,7.37389]
[1739428060421,0.55,2712.6,2712.3,3.68687]
[1739428061264,0.55,2712.6,2712.2,3.68694]
[1739428062022,0.55,2712.6,2712.3,3.68689]
[1739428062245,0.55,2712.6,2712.2,3.68694]
[1739428062439,0.55,2712.6,2712.3,3.68681]
[1739428063563,0.55,2712.6,2712.0,2.0]
[1739428063766,0.7744,2712.9,2712.3,2.0]
[1739428063923,0.7744,2712.9,2712.6,3.68646]
[1739428065010,0.7744,2712.9,2712.4,3.68677]
[1739428065205,4.46058,2712.9,2712.4,3.68677]
[1739428065955,4.46058,2712.9,2712.4,7.37345]
[1739428066160,0.7744,2712.9,2712.5,3.68662]
[1739428066673,0.7744,2712.9,2712.6,3.68647]
[1739428066834,0.7744,2712.9,2712.5,3.68663]
[1739428067037,4.4605,2712.9,2712.3,2.0]
[1739428067454,0.7744,2712.9,2712.4,7.37337]
[1739428067756,0.7744,2712.9,2712.5,3.68663]
[1739428068315,0.7744,2712.9,2712.4,3.68667]
[1739428068922,0.7744,2712.9,2712.5,3.68653]
[1739428069564,0.5575,2713.1,2712.5,3.68653]
[1739428069565,1.3492,2713.1,2712.6,2.0]
[1739428069751,1.3417,2713.1,2712.7,3.68626]
[1739428069945,1.3417,2713.1,2712.8,3.68622]
[1739428070151,1.3417,2713.1,2712.8,3.68615]
[1739428071091,1.3417,2713.1,2712.9,3.68598]
[1739428071387,0.55,2713.1,2712.8,3.68615]
[1739428071969,0.814,2713.3,2712.6,2.0]
[1739428072151,0.0075,2713.4,2712.7,3.4907798]
[1739428072350,0.565,2713.4,2712.6,5.0]
[1739428072597,3.68566,2713.3,2712.7,3.68631]
[1739428073559,3.68566,2713.3,2712.8,3.68621]
[1739428073763,0.565,2713.4,2712.6,2.0]
[1739428073981,3.6863,2712.8,2712.5,2.0]
[1739428074212,3.68677,2712.4,2712.2,2.0]
[1739428074371,4.50617,2712.4,2711.9,5.68744]
[1739428075500,4.51968,2712.6,2712.1,3.68709]
[1739428075812,0.5575,2712.5,2712.1,3.68709]
[1739428076865,4.24417,2712.5,2711.9,5.68737]
[1739428077064,0.5575,2712.5,2712.0,3.68722]
[1739428077848,0.8331,2712.6,2712.3,3.68688]
[1739428079130,0.8331,2712.6,2712.2,6.47503]
[1739428080251,0.55,2712.7,2712.5,3.68659]
[1739428080461,0.7767,2713.0,2712.7,3.68628]
[1739428080750,0.7767,2713.0,2712.6,3.6865]
[1739428081101,3.68611,2712.9,2712.5,2.0]
[1739428081301,3.68624,2712.8,2712.3,3.68689]
[1739428081601,3.68624,2712.8,2712.2,2.0]
[1739428081602,0.55,2712.7,2712.2,2.0]
[1739428081960,0.7996,2712.6,2712.2,5.68691]
[1739428082456,3.68664,2712.5,2712.0,3.68724]
[1739428083019,0.55,2712.4,2712.0,3.68724]
[1739428083359,0.55,2712.4,2711.9,8.68744]
[1739428083861,0.55,2712.4,2711.9,5.0]
[1739428083862,4.23689,2712.4,2711.9,5.0]
[1739428084006,4.23689,2712.4,2711.9,8.68735]
[1739428084219,0.565,2712.5,2712.0,3.68729]
[1739428084465,4.25164,2712.5,2712.0,3.68729]
[1739428085267,0.565,2712.5,2712.1,3.68716]
[1739428086070,0.565,2712.5,2712.2,3.68695]
[1739428086275,0.565,2712.5,2712.1,3.68716]
[1739428087069,0.565,2712.5,2712.2,3.68701]
[1739428087214,0.565,2712.5,2712.1,3.68716]
[1739428087420,0.565,2712.5,2712.1,7.37421]
[1739428087669,0.565,2712.5,2712.1,3.68705]
[1739428088170,0.565,2712.5,2711.9,8.68736]
[1739428088379,3.68677,2712.4,2711.9,8.68736]
[1739428088719,3.68707,2712.2,2711.5,9.1787398]
[1739428088919,0.8177,2711.9,2711.5,5.68796]
[1739428090281,0.8177,2711.9,2711.5,3.68796]
[1739428090649,4.50517,2711.9,2711.4,3.68806]
[1739428090992,3.69509,2711.8,2711.3,3.68819]
[1739428091175,0.55,2711.7,2711.3,3.68819]
[1739428091966,0.015,2711.6,2711.2,2.0]
[1739428092198,4.51164,2711.5,2710.9,3.6887]
[1739428092404,0.5575,2711.4,2710.9,3.6887]
[1739428092809,0.0075,2711.3,2710.9,3.6887]
[1739428093017,3.69577,2711.3,2710.7,9.37801]
[1739428093174,3.69577,2711.3,2710.8,3.68891]
[1739428093378,0.0075,2711.3,2710.8,3.68891]
[1739428094122,0.0075,2711.3,2710.8,7.37777]
[1739428094256,0.0075,2711.3,2710.9,3.68877]
[1739428094705,0.0075,2711.3,2710.9,3.68873]
[1739428094911,0.0075,2711.3,2711.0,3.68867]
[1739428095297,0.0075,2711.3,2711.1,3.68851]
[1739428095611,0.8236,2711.5,2711.4,3.68813]
[1739428095808,0.8236,2711.5,2711.1,3.68843]
[1739428095975,0.8236,2711.5,2711.2,3.68833]
[1739428096377,0.8236,2711.5,2711.4,3.68813]
[1739428096593,0.8311,2711.5,2711.4,3.68813]
[1739428096818,0.7755,2711.7,2711.5,3.68798]
[1739428097515,1.333,2711.7,2711.6,3.68785]
[1739428097840,0.8018,2711.9,2711.7,3.6876]
[1739428097997,1.3668,2711.9,2711.8,3.68758]
[1739428098202,0.8018,2712.3,2711.6,2.0]
[1739428098538,0.5575,2712.1,2711.7,3.6877]
[1739428098838,0.0075,2712.1,2712.0,3.68731]
[1739428099343,0.565,2712.2,2712.0,3.68731]
[1739428099548,0.565,2712.2,2712.1,3.68717]
[1739428099722,0.8018,2712.3,2712.2,3.68704]
[1739428100191,0.015,2712.7,2712.2,3.68704]
[1739428100405,0.015,2712.7,2712.3,3.6869]
[1739428101048,0.5113491,2712.7,2712.5,3.68662]
[1739428101205,0.8153,2712.8,2712.6,3.6865]
[1739428101547,0.8153,2713.2,2712.8,3.68611]
[1739428101899,0.0075,2713.1,2712.6,3.68647]
[1739428102103,0.015,2713.1,2712.6,3.68647]
[1739428102348,0.55,2713.0,2712.6,3.68647]
[1739428103106,0.55,2713.0,2712.4,3.68668]
[1739428103310,0.55,2713.0,2712.5,3.68662]
[1739428103709,0.5575,2712.7,2712.2,5.68698]
[1739428103913,0.5575,2712.7,2712.2,3.68698]
[1739428104115,0.0075,2712.4,2711.9,2.0]
[1739428104330,0.0075,2712.3,2712.0,3.68729]
[1739428104939,0.0075,2712.3,2711.8,3.68748]
[1739428104940,0.0075,2712.3,2711.8,3.68747]
[1739428105248,0.8178,2712.0,2711.6,3.68777]
[1739428105455,0.8178,2712.0,2711.5,2.0]
[1739428105653,0.8178,2712.0,2711.9,3.68745]
[1739428105952,0.565,2712.2,2712.0,3.68721]
[1739428106511,0.565,2712.2,2711.9,3.68745]
[1739428107252,0.565,2712.2,2711.7,3.68768]
[1739428107609,0.565,2712.2,2711.9,3.68743]
[1739428107810,1.067399,2712.2,2711.8,3.68757]
[1739428108033,1.067399,2712.2,2711.9,3.68741]
[1739428108430,0.565,2712.2,2711.9,3.68741]
[1739428109074,0.565,2712.2,2711.7,7.3753]
[1739428109250,0.565,2712.2,2711.8,3.68757]
[1739428109980,4.25209,2712.2,2711.7,3.6876]
[1739428110382,0.565,2712.2,2711.7,3.6876]
[1739428110536,0.015,2712.0,2711.7,3.6876]
[1739428110735,0.015,2712.0,2711.9,3.68745]
[1739428111264,0.015,2712.0,2711.7,3.6876]
[1739428111581,0.0075,2712.0,2711.7,3.6876]
[1739428111952,0.0075,2712.0,2711.5,3.68788]
[1739428112152,0.565,2711.8,2711.3,6.68818]
[1739428112454,0.7961,2711.5,2711.0,3.68859]
[1739428112644,0.7961,2711.5,2711.1,3.68846]
[1739428113291,0.7961,2711.5,2711.0,3.68859]
[1739428114083,0.565,2711.4,2711.0,3.68856]
[1739428114282,0.565,2711.4,2710.8,4.46933]
[1739428114488,0.565,2711.4,2711.0,3.68856]
[1739428117293,0.565,2711.4,2711.1,3.68841]
[1739428117779,0.565,2711.4,2711.0,3.68856]
[1739428118179,4.25314,2711.4,2710.8,4.46935]
[1739428118399,0.565,2711.4,2711.0,3.68864]
[1739428119595,0.565,2711.4,2711.1,3.68849]
[1739428119889,0.565,2711.4,2711.2,3.68829]
[1739428120578,0.7961,2711.5,2711.4,3.68813]
[1739428120978,1.3892,2711.9,2711.5,3.68797]
[1739428121162,0.534255,2711.8,2711.5,3.68797]
[1739428121711,0.534255,2711.8,2711.3,3.68826]
[1739428121868,3.68767,2711.8,2711.2,3.68833]
[1739428122066,3.68767,2711.8,2711.3,3.68825]
[1739428122273,0.8242,2711.9,2711.0,2.0]
[1739428122452,0.8242,2711.9,2711.6,3.68777]
[1739428122652,1.275351,2711.9,2711.6,3.68777]
[1739428122971,4.25265,2711.8,2711.3,3.68815]
[1739428124893,0.0075,2711.6,2711.3,3.68815]
[1739428125082,0.0075,2711.6,2711.2,3.68839]
[1739428125484,0.565,2711.6,2711.1,3.68848]
[1739428125687,0.7513,2711.4,2711.1,3.68852]
[1739428125990,0.565,2711.3,2710.9,7.1794998]
[1739428126189,0.565,2711.3,2710.9,3.4907798]
[1739428126371,0.565,2711.3,2710.7,5.689]
[1739428126694,0.565,2711.3,2710.8,3.68892]
[1739428126916,0.565,2711.3,2710.9,3.68874]
[1739428127417,0.565,2711.3,2710.8,3.68892]
[1739428127618,0.565,2711.3,2710.8,7.37779]
[1739428127810,0.565,2711.3,2710.9,3.68879]
[1739428129086,0.565,2711.3,2710.8,3.68887]
[1739428129287,0.565,2711.3,2711.0,3.68866]
[1739428129715,0.7513,2711.4,2711.1,3.68846]
[1739428130826,4.43946,2711.4,2710.9,7.9514698]
[1739428131236,0.5575,2711.3,2710.9,7.1795698]
[1739428131402,0.5575,2711.3,2710.9,3.4907798]
[1739428131609,0.0075,2711.2,2710.9,3.4907798]
[1739428131929,0.0075,2711.2,2710.8,3.68887]
[1739428132329,0.0075,2711.2,2710.8,7.37774]
[1739428133328,0.0075,2711.2,2710.8,3.68887]
[1739428133540,0.0075,2711.2,2710.7,2.0]
[1739428133687,0.0075,2711.2,2710.9,3.68872]
[1739428133885,0.0075,2711.2,2710.8,3.68894]
[1739428134087,0.772,2711.0,2710.5,3.68926]
[1739428134297,0.55,2710.9,2710.5,3.68926]
[1739428135317,0.55,2710.9,2710.4,5.0]
[1739428135518,0.55,2710.9,2710.6,3.68909]
[1739428135729,0.55,2710.9,2710.7,3.68907]
[1739428136331,0.55,2710.9,2710.5,3.68927]
[1739428136642,0.55,2710.9,2710.6,3.68914]
[1739428137639,1.3611,2710.6,2710.1,5.68979]
[1739428138215,1.3611,2710.6,2710.1,2.0]
[1739428138415,1.3611,2710.6,2710.3,3.68962]
[1739428138834,0.8036,2710.6,2710.4,3.68938]
[1739428139030,0.8213,2710.9,2710.7,3.68906]
[1739428139543,0.8213,2710.9,2710.7,3.689]
[1739428140263,1.3788,2710.9,2710.8,3.68894]
[1739428140467,0.8128,2711.3,2711.0,3.68867]
[1739428140637,0.8128,2711.6,2711.5,3.68799]
[1739428140834,0.8299,2711.9,2711.4,3.52766116]
[1739428141016,0.8299,2712.3,2711.8,3.68758]
[1739428141219,0.8299,2712.3,2711.8,3.68748]
[1739428141565,0.0075,2712.2,2711.8,3.68748]
[1739428141866,0.0075,2712.2,2712.0,3.68726]
[1739428142161,0.015,2712.2,2711.8,3.68752]
[1739428142661,0.015,2712.2,2711.7,3.4907798]
[1739428142957,0.015,2712.2,2711.7,7.1784998]
[1739428143166,0.015,2712.2,2711.8,3.68748]
[1739428143338,0.015,2712.2,2711.9,3.68743]
[1739428143534,0.015,2712.2,2711.8,3.68748]
[1739428143747,0.565,2712.2,2711.5,2.0]
[1739428144061,1.018176,2712.2,2711.7,3.68771]
[1739428144369,1.018176,2712.2,2711.6,3.68777]
[1739428144662,0.565,2712.0,2711.5,2.0]
[1739428144870,0.0075,2712.0,2711.6,3.68781]
[1739428145220,0.0075,2712.0,2711.6,3.68776]
[1739428145461,0.0075,2712.0,2711.5,2.0]
[1739428145764,0.7866,2711.9,2711.5,5.68798]
[1739428145964,0.5575,2711.8,2711.5,2.0]
[1739428146150,0.0075,2711.7,2711.1,8.0052198]
[1739428146351,0.0075,2711.7,2711.1,4.3167798]
[1739428146553,0.0075,2711.7,2711.2,3.68839]
[1739428146850,0.0075,2711.8,2711.5,3.6879]
[1739428147419,0.7866,2711.9,2711.5,3.6879]
[1739428147619,0.015,2712.0,2711.7,3.68766]
[1739428148352,0.015,2712.0,2711.7,7.37529]
[1739428148623,0.015,2712.0,2711.7,3.68763]
[1739428149173,0.55,2712.1,2711.8,3.68754]
[1739428149475,0.55,2712.1,2711.9,3.68737]
[1739428149967,0.55,2712.1,2711.8,3.68754]
[1739428150155,0.55,2712.1,2711.8,3.68751]
[1739428150873,0.55,2712.1,2711.7,3.68771]
[1739428151222,0.55,2712.1,2711.6,5.68775]
[1739428151550,0.55,2712.1,2711.8,3.6875]
[1739428152327,0.015,2712.0,2711.7,3.68763]
[1739428152629,0.015,2712.0,2711.8,3.68751]
[1739428152835,0.55,2712.1,2711.8,3.68747]
[1739428153044,0.55,2712.1,2711.8,7.37498]
[1739428153683,0.55,2712.1,2711.8,3.68747]
[1739428154372,0.55,2712.1,2711.6,5.68777]
[1739428154576,0.55,2712.1,2711.7,3.68764]
[1739428155692,0.55,2712.1,2711.8,3.68756]
[1739428156697,0.55,2712.1,2711.9,3.68744]
[1739428156851,0.55,2712.1,2711.8,7.37507]
[1739428157051,0.55,2712.1,2711.8,3.68751]
[1739428157369,0.55,2712.1,2711.9,3.68743]
[1739428158001,0.55,2712.1,2711.7,3.6876]
[1739428158290,3.68735,2712.0,2711.6,2.0]
[1739428158493,3.68735,2712.0,2711.5,3.68789]
[1739428158689,3.68735,2712.0,2711.4,7.1788198]
[1739428158889,0.0075,2711.9,2711.4,7.1788198]
[1739428159093,4.25245,2711.9,2711.4,7.1788198]
[1739428159338,0.565,2711.7,2711.4,3.68803]
[1739428159456,0.565,2711.7,2711.5,3.68789]
[1739428159650,0.565,2711.7,2711.4,3.68803]
[1739428159907,0.565,2711.7,2711.6,3.68785]
[1739428160568,0.7659,2712.1,2711.6,3.68785]
[1739428160753,0.7659,2712.1,2711.8,3.68749]
[1739428160979,0.7659,2712.1,2711.8,7.37498]
[1739428161596,0.7659,2712.1,2711.8,3.68749]
[1739428162097,0.7734,2712.3,2712.2,3.68704]
[1739428162316,0.7929,2712.9,2712.5,3.68652]
[1739428162664,0.565,2712.8,2712.6,3.68642]
[1739428163220,0.015,2712.8,2712.6,3.68642]
[1739428163517,0.7929,2712.9,2712.6,3.68642]
[1739428163729,0.7929,2712.9,2712.6,3.68637]
[1739428163857,0.7929,2712.9,2712.5,3.68663]
[1739428164414,0.7929,2712.9,2712.4,5.68665]
[1739428164627,0.7929,2712.9,2712.4,2.0]
[1739428164829,0.565,2712.8,2712.3,0.7589]
[1739428164971,0.565,2712.8,2712.1,3.68714]
[1739428165326,0.5575,2712.6,2712.1,3.68714]
[1739428165526,0.5575,2712.6,2712.1,3.68709]
[1739428165738,0.5575,2712.6,2712.4,3.68668]
[1739428167030,0.5575,2712.6,2712.2,7.37388]
[1739428167239,0.5575,2712.6,2712.3,3.68683]
[1739428167537,0.5575,2712.6,2712.4,3.68675]
[1739428168153,0.5575,2712.6,2712.2,3.68691]
[1739428168341,0.5575,2712.6,2712.0,4.2496798]
[1739428168485,0.5575,2712.6,2712.0,7.9369098]
[1739428168685,0.5575,2712.6,2712.2,3.68701]
[1739428168886,0.5575,2712.6,2712.3,3.6869]
[1739428169724,0.5575,2712.6,2712.4,3.68668]
[1739428169929,0.7929,2712.9,2712.4,5.68668]
[1739428170230,0.565,2712.8,2712.4,2.0]
[1739428170445,7.93768,2712.8,2712.2,3.687]
[1739428170737,4.25131,2712.8,2712.2,7.37396]
[1739428170946,4.25131,2712.8,2712.3,3.68689]
[1739428171444,0.565,2712.8,2712.4,3.68675]
[1739428171647,0.7929,2712.9,2712.5,3.68655]
[1739428172001,0.7929,2712.9,2712.4,5.6867]
[1739428172163,4.47902,2712.9,2712.4,2.0]
[1739428172666,3.68623,2712.8,2712.3,3.68677]
[1739428173211,3.68623,2712.8,2712.4,2.0]
[1739428173410,3.68623,2712.8,2712.3,3.68677]
[1739428173842,0.565,2712.7,2712.3,7.37359]
[1739428174167,0.015,2712.7,2712.4,3.68677]
[1739428174774,0.015,2712.7,2712.3,3.68688]
[1739428174930,0.015,2712.7,2712.4,3.68674]
[1739428175114,0.015,2712.7,2712.4,7.37343]
[1739428175320,0.015,2712.7,2712.4,3.68669]
[1739428175535,0.7929,2712.9,2712.5,2.0]
[1739428175953,0.7929,2712.9,2712.5,5.68656]
[1739428176148,0.7929,2712.9,2712.5,2.0]
[1739428176149,4.47899,2712.9,2712.5,2.0]
[1739428176533,4.47899,2712.9,2712.1,3.0]
[1739428176534,1.6545631,2712.9,2712.1,5.0]
[1739428176890,0.7929,2712.9,2712.4,2.0]
[1739428177033,0.7929,2712.9,2712.4,5.68668]
[1739428177729,0.7929,2712.9,2712.4,9.37337]
[1739428177930,0.7929,2712.9,2712.4,2.0]
[1739428178177,0.7929,2712.9,2712.5,3.68659]